Cogmind - Beta 14 @@@ ROGUE MODE // 2025.04.04 @ 18:59:15 Player: golanco Result: Destroyed by G-34 Mercenary with Small Laser Performance ------------- Evolutions (0) 0 Regions Visited (1) 200 Robots Destroyed (17) 85 Value Destroyed (185) 185 Prototype IDs (2) 40 Alien Tech Used (0) 0 Bonus (-40) -40 TOTAL SCORE: 470 Bonus ------- Friendly Fire -40 Cogmind --------- Core Integrity 0/250 Matter 300/300 Energy 73/100 System Corruption 2% Temperature Cool (6) Movement Core (800) Ox15 Location -10/Materials Parts ------- > --- POWER (1) -------- (None) > --- PROPULSION (2) --- (None) > --- UTILITY (2) ------ Heat Sink High-capacity Storage Unit > --- WEAPON (2) ------- EM Pulse Gun Beam Cannon > --- INVENTORY (20) --- Light Ion Engine Light Ion Engine Transport Network Coupler Targeting Computer Hacking Suite Small Laser Datajack Peak State ------------ > --- POWER ------------ Light Ion Engine > --- PROPULSION ------- Wheel Compact Wheel > --- UTILITY ---------- Heat Sink Medium Storage Unit > --- WEAPON ----------- EM Pulse Gun EM Pulse Gun > --- INVENTORY -------- Light Ion Engine Transport Network Coupler Targeting Computer Weapon Shielding EM Pulse Gun Small Laser Small Laser Beam Cannon Light Assault Rifle Light Assault Rifle [Rating: 8] Favorites ----------- Power Light Ion Engine Engine Light Ion Engine Propulsion Compact Wheel Wheel Compact Wheel Utility Heat Sink Device Heat Sink Storage High-capacity Storage Unit Weapon EM Pulse Gun Energy Gun EM Pulse Gun Energy Cannon Beam Cannon Ballistic Gun Light Assault Rifle Special Melee Weapon Datajack Build | -11 -10 ------- Run | Yrd Mat Slots Evolved . | . . Power . | . . Propulsion . | . . Utility . | . . Weapon . | . . Parts Attached 14 | 5 9 Power 1 | . 1 Engine 1 | . 1 Core . | . . Reactor . | . . Propulsion 2 | 2 . Treads . | . . Leg . | . . Wheel 2 | 2 . Hover . | . . Flight . | . . Utility 4 | 1 3 Device 1 | . 1 Storage 3 | 1 2 Processor . | . . Hackware . | . . Protection . | . . Artifact . | . . Weapon 7 | 2 5 Energy Gun 3 | 2 1 Energy Cannon 1 | . 1 Ballistic Gun 2 | . 2 Ballistic Cannon . | . . Launcher . | . . Special Weapon . | . . Impact Weapon . | . . Slashing Weapon . | . . Piercing Weapon . | . . Special Melee Weapon 1 | . 1 Unidentified Prototypes . | . . Parts Lost 7 | . 7 Power 1 | . 1 Propulsion 2 | . 2 Utility . | . . Weapon 4 | . 4 Highest Loss Streak 4 | . 4 To Critical Strikes . | . . Average Slot Usage (%) 82 | . 82 Engine 10 | . 10 Wheel 16 | . 16 Device 12 | . 12 Storage 14 | . 14 Energy Gun 16 | . 16 Ballistic Gun 11 | . 11 Peak Build Rating 8 | 5 8 Average Rating 6 | 4 6 On Entrance 2 | . 5 Naked Turns . | . . Heaviest Build 48 | 9 48 Greatest Support 26 | 26 26 Greatest Overweight (x) 15 | . 15 Average Overweight (x) 1 | . 1 Largest Inventory Capacity 20 | 8 20 Average Capacity 14 | 7 15 Most Carried 10 | 1 10 Average Carried 7 | . 7 Final Capacity 20 | 8 20 Final Carried 7 | 1 7 Class Distribution -------------------- 100% | Mutant Dominant Class ---------------- Mutant | -10/Materials Resources | -11 -10 ----------- Run | Yrd Mat Matter Collected 416 | 212 204 Remotely . | . . Salvage Created 412 | . 412 Parts 36 | . 36 Haulers Intercepted 1 | . 1 Recyclers Shooed 3 | . 3 Parts Field Recycled . | . . Retrieved Matter . | . . Parts Self-Destructed . | . . Prevented . | . . Kills | -11 -10 ------- Run | Yrd Mat Combat Hostiles Destroyed 7 | . 7 Guns 7 | . 7 Classes Destroyed 8 | . 8 Worker 2 | . 2 Tunneler 1 | . 1 Hauler 1 | . 1 Recycler 1 | . 1 Operator 2 | . 2 Watcher 3 | . 3 Swarmer 6 | . 6 Grunt 1 | . 1 Best Kill Streak 5 | . 5 Combat Bots Only 3 | . 3 Max Kills in Single Turn 1 | . 1 Gunslinging . | . . Exploded . | . . Melee . | . . Uniques/NPCs Destroyed . | . . Combat | -11 -10 -------- Run | Yrd Mat Hostile Shots Fired 110 | . 110 Missed 31 | . 31 Damage Taken 758 | . 758 Core 253 | . 253 Absorbed by Shields . | . . Core Remaining (%) 100 | 100 . Volleys Fired 63 | . 63 Largest 2 | . 2 Hottest 80 | . 80 Shots Fired 121 | . 121 Gun 121 | . 121 Cannon . | . . Launcher . | . . Special . | . . Kinetic 67 | . 67 Thermal . | . . Explosive . | . . Electromagnetic 54 | . 54 Robot Hit Streak 5 | . 5 Robot Miss Streak 4 | . 4 Penetration Max . | . . Secondary Targets 4 | . 4 Max Gunslinging Chain 1 | . 1 Shots Hit Robots 69 | . 69 Core Hits 26 | . 26 Critical Kills 1 | . 1 Critical Parts Destroyed . | . . Critical Strikes 1 | . 1 Destroy 1 | . 1 Melee Attacks . | . . Impact . | . . Slashing . | . . Piercing . | . . Sneak Attacks . | . . Combat Hostiles . | . . Follow-up Attacks . | . . Damage Inflicted 790 | . 790 Guns 730 | . 730 Cannons . | . . Explosions 60 | . 60 Melee . | . . Ramming . | . . Kinetic 330 | . 330 Thermal 60 | . 60 Explosive . | . . Electromagnetic 400 | . 400 Impact . | . . Slashing . | . . Piercing . | . . Highest Corruption 2 | . 2 Average Corruption 2 | . 2 Corruption Purged . | . . Corruption Blocked . | . . Effects 12 | . 12 Message Errors 2 | . 2 Matter Fused 4 | . 4 Heat Flow Errors 1 | . 1 Energy Discharges 2 | . 2 Parts Fused 1 | . 1 Misfires 1 | . 1 Weapon Failures 1 | . 1 Overload Shots . | . . Overflow Damage 5 | . 5 Projectiles . | . . Explosions 5 | . 5 Melee . | . . Knockbacks . | . . Impact . | . . Kinetic . | . . Secondary . | . . Self-Inflicted Damage 7 | . 7 Shots 1 | . 1 Rammed . | . . Targets Rammed . | . . Kicked . | . . Crushed . | . . Highest Temperature 114 | . 114 Average Temperature 49 | . 49 Received Heat Transfer 213 | . 213 Siege Activations . | . . Robots Corrupted . | . . Combat Hostiles . | . . Parts Fried 4 | . 4 Impact Corruptions . | . . Robots Melted . | . . Combat Hostiles . | . . Parts Melted . | . . Heat Transferred 100 | . 100 Parts Sabotaged . | . . Parts Stolen . | . . Parts Stripped . | . . Power Chain Reactions 2 | . 2 Alert | -11 -10 ------- Run | Yrd Mat Peak Influence 148 | . 148 Initial . | . . Average 63 | . 67 Maximum Alert Level . | . . Low Security (%) 100 | 100 100 Level 1 . | . . Level 2 . | . . Level 3 . | . . Level 4 . | . . Level 5 . | . . High Security . | . . Max Security . | . . Squads Dispatched 1 | . 1 Investigation . | . . Extermination . | . . Reinforcement 1 | . 1 Assault . | . . Garrison . | . . Intercept . | . . Searches Triggered . | . . Construction Impeded . | . . Haulers Reinforced . | . . Active Scanning Responses . | . . Cargo Convoy Interrupts . | . . Stealth | -11 -10 --------- Run | Yrd Mat Distress Signals . | . . Communications Jammed . | . . Distress Signals . | . . Times Spotted 17 | . 17 Peak Tracking Total 3 | . 3 Tactical Retreats 1 | . 1 Traps | -11 -10 ------- Run | Yrd Mat Traps Triggered 1 | . 1 Indirectly . | . . Trap Hack Attempts . | . . Triggered . | . . Disarmed . | . . Reprogrammed . | . . Reused . | . . Traps Extracted . | . . Installed . | . . Triggered . | . . Machines | -11 -10 ---------- Run | Yrd Mat Machines Disabled 1 | . 1 Max in Single Turn 1 | . 1 Machines Repaired . | . . Machines Dismantled . | . . Machines Sabotaged . | . . Overloaded Fab Kills . | . . Hacking | -11 -10 --------- Run | Yrd Mat Machines Accessed 6 | . 6 Terminals 4 | . 4 Fabricators . | . . Repair Stations . | . . Recycling Units 2 | . 2 Scanalyzers . | . . Garrison Access . | . . Total Hacks 20 | . 20 Successful 14 | . 14 Failed 6 | . 6 Catastrophic 1 | . 1 Database Lockouts . | . . Manual 9 | . 9 Terminals 14 | . 14 Fabricators . | . . Repair Stations . | . . Recycling Units 6 | . 6 Scanalyzers . | . . Garrison Access . | . . Terminal Hacks 5 | . 5 Prototype ID Bank 1 | . 1 Emergency Access Points 1 | . 1 Unreport Threat 2 | . 2 Hauler Manifests 1 | . 1 Fabricator Hacks . | . . Repair Station Hacks . | . . Recycling Unit Hacks 4 | . 4 Report Inventory 2 | . 2 Retrieve Components 2 | . 2 Scanalyzer . | . . Garrison Access Hacks . | . . Unauthorized Hacks 5 | . 5 Terminals 5 | . 5 Track 1 | . 1 Assimilate 1 | . 1 Botnet 3 | . 3 Fabricators . | . . Repair Stations . | . . Recycling Units . | . . Scanalyzers . | . . Garrison Access . | . . Data Cores Recovered 1 | . 1 Used . | . . Hacking Detections 5 | . 5 Full Trace Events 1 | . 1 Feedback Events . | . . Feedback Blocked . | . . Robot Schematics Acquired . | . . Robots Built . | . . Authchips . | . . Time . | . . Total Robot Build Rating . | . . Part Schematics Acquired . | . . Parts Built . | . . Authchips . | . . Time . | . . Total Part Build Rating . | . . Parts Repaired . | . . Time . | . . Parts Recycled . | . . Recycled Matter . | . . Retrieved Matter . | . . Retrieved Components 4 | . 4 Parts Scanalyzed . | . . Part Schematics Acquired . | . . Parts Damaged . | . . Bothacking | -11 -10 ------------ Run | Yrd Mat Used RIF Installer . | . . Robots Hacked . | . . Non-combat . | . . Combat . | . . Robot Hacks Applied . | . . Relay Couplers Released . | . . Fabnet Peak Effective % . | . . Robots Rewired . | . . Allies Hacked . | . . Hacks Repelled . | . . Allies | -11 -10 -------- Run | Yrd Mat Total Allies 1 | . 1 Largest Group . | . . Highest-Rated Group . | . . Highest-Rated Ally . | . . Total Orders . | . . Ally Attacks . | . . Total Damage . | . . Kills . | . . Allies Corrupted . | . . Allies Melted . | . . Intel | -11 -10 ------- Run | Yrd Mat Robot Analysis Total . | . . Derelict Logs Recovered . | . . Drone Launches . | . . Drone Recoveries . | . . Exploration | -11 -10 ------------- Run | Yrd Mat Turns Passed 862 | 46 816 Spaces Moved 461 | 43 418 Core 34 | 2 32 Treads . | . . Legs . | . . Wheels 427 | 41 386 Hover . | . . Flight . | . . Fastest Speed 50 | 50 90 Average Speed 140 | 87 145 Slowest Speed 800 | 90 800 Overloaded Moves . | . . Propulsion Burnouts . | . . Robots Hopped . | . . Cave-ins Triggered . | . . Exploration Rate (%) 30 | 3 58 Regions Visited 1 Branch Regions . Pre-discovered Areas . | . . Known Exits Taken . | . . Unknown Exits Taken 1 | 1 . Scrap Searched . | . . Spaces Dug . | . . Terrain Destroyed 7 | . 7 Melee . | . . Projectile . | . . AOE 7 | . 7 Terrain Rammed . | . . Walls Destroyed . | . . Machines Disabled . | . . Actions | -11 -10 --------- Run | Yrd Mat Total 568 | 48 520 Wait 11 | . 11 Move 460 | 42 418 Hop . | . . Pick Up 14 | 1 13 Fast Attach 8 | 5 3 Attach 5 | . 5 Detach 1 | . 1 Swap 1 | . 1 Drop 5 | . 5 Fire 63 | . 63 Melee . | . . Ram . | . . Kick . | . . Crush . | . . Escape Stasis . | . . Rewire . | . . Trap . | . . Miscellaneous . | . . Route ------- -11/Scrapyard -10/Materials (discovered 1 exit: [*Mat]) History --------- Turn | Location | Event 17 | -11/Scrapyard | Discovered new exit (range 15) 47 | -11/Scrapyard | Entered Materials 131 | -10/Materials | Discovered new exit (range 10) 310 | -10/Materials | Build established: Mutant 548 | -10/Materials | Lost 4 parts (2n2w) 819 | -10/Materials | Core integrity fell below 50% 848 | -10/Materials | Core integrity fell below 20% 863 | -10/Materials | Destroyed by G-34 Mercenary with Small Laser Last Messages --------------- Acquired 33 matter. K-01 Serf collects debris. W-16 Scout destroyed. Acquired 21 matter. K-01 Serf collects debris. Acquired 2 matter. K-01 Serf destroyed. Switching to secondary target: G-47 Trooper. Acquired 2 matter. System corrupted: Energy discharge (-26). Acquired 1 matter. Critical hit (Burn: +37). R-06 Scavenger collects Wheel. Lgt. Ion Engine destroyed. R-06 Scavenger collects Sensor Array. Lgt. Assault Rifle destroyed. R-06 Scavenger collects Hover Unit. Lgt. Assault Rifle destroyed. G-47 Trooper destroyed. Acquired 10 matter. Map ----- +----------------------------------------------------+ | ??????# + " " #?????# # # # # # | | ??????# # "R" #?????# + + + ######### | | ??????# # """ #?????# # #= # #???????? | | ??????# ########?????# # #!= ####???????? | | ####### #????????????# # #% ! #??????????? | | # #????????????# # # #??????????? | | # #????????????#######" " %############ | | "" + ##################?## "###### # | | "T # # ! #?## "#????# # | | "" # # #?# ###### # | | # # #?# = # # | | ############## # #?# !%! / """ """ # | | ?????????????# # ! #?# ### # """ """ # | | ?????????????# # #?######?# # """ """ # | | ?????????????# + #????????# # # | | ?????????????# # #????????# ########### | | ?????????????# #####+#####????????# #?????????? | | ?????????????# #??# #########???# #?????????? | | ?????????????# ####[ / #???# #?????????? | | ?????????????# ! * ## #???# #?????????? | | ?????????????# ####= ## "" ! #???# #?????????? | | ?????????????# #??# = ## "Y #???# #?????????? | | ?????????????# #??# ## "" #???# #?????????? | | ?????????????# #?## ## #???# #?????????? | | ?????????????# #?# !%###+######## #?????????? | | ?????????????# #?# g@ #?????????? | | ?????????????# #?# t < #?????????? | | ????+????????# #?# #?????????? | | ????# ###### #?# ###+######## #?????????? | | ????# ^ #?####### #???# #?????????? | | ????# ####??? # #???# #?????????? | | ????### ^ +?? # #???# #?????????? | | ??????# #######+#####?? # !![#???# #?????????? | | ????????# #? # ![ #???# #?????????? | | ????????# !*% #? # ![ #??## ##????????? | | ????????# * # ########??# #????????? | | ????????#! """ * # #?????????# #????????? | | ????????# """ *+% #?????????# #????????? | | ????????# """ # | #?????????# #????????? | | ??????#?# ######?????????## ##????????? | | ??????# ############################# #?????????? | | ??????# !%!! ########### | | ??????# =!!! % # # | | ??????# != # """ """ # | | ??????# ###+####################### # """ """ # | | ??????# # #??????# ! # # """ "" # | | ??????# ?# T #??????# """ + + % # | | ??????# ??# #??????# [ """"" # #* ! # | | ??????#???# #??????# """"" # # "Y" # | | ??????????# #??????# """"" # # """ ! # | +----------------------------------------------------+ Best States ------------- Heat Dissipation 35 Energy Generation 10 Energy Capacity 125 Matter Stores 300 Matter Capacity 300 Sight Range 16 Terrain Scan Density 10 Evasion (%) 42 Item Schematics ----------------- None Robot Schematics ------------------ None Fabricated ------------ Nothing Alien Tech Used ----------------- None Achievements -------------- None Challenges ------------ None Game ------ Seed DroneIntegrityCharger Manual? 0 Play Time 00:10:08 Cumulative 52.0 hours Start 2025.04.04 @ 18:12:59 End 2025.04.04 @ 18:59:15 Sessions 1 Manual Loads 0 Difficulty Rogue Special Mode None Game No. 134 Rogue 134 Adventurer 0 Explorer 0 Win Type - Total 0 Types 0/0/0/0/0/0/0/0/0 Lore% 20 Gallery% 30 Achievement% 30 Wizard Run 0 Options --------- Layout 1 ASCII 0 Keyboard 0 Movement Mouse Keybinds 0 Fullscreen 1 Font 36/Smallcaps Map View 50x40 Zoom Use 0% Tactical HUD 0 Map Filters NONE Filters NONE Steam 1 RUN: 31f6dec4-2db7-405e-acd1-bb3fe7d5b943